Cogmind - Beta 13 @@@ ROGUE MODE // 2024.04.17 @ 15:39:33 Player: H3-RMN Result: Destroyed by X-67 Chaingunner with Minigun Performance ------------- Evolutions (3) 1500 Regions Visited (9) 1800 Robots Destroyed (126) 630 Value Destroyed (4298) 4298 Prototype IDs (49) 980 Alien Tech Used (0) 0 Bonus (2299) 2299 TOTAL SCORE: 11507 Bonus ------- High Alert Combat Kills 417 Follower Combat Kills 182 Entered Garrisons 400 Used RIF Installer 1000 Aligned with FarCom 300 Cogmind --------- Core Integrity 0/700 Matter 17/600 Energy 85/100 System Corruption 1% Temperature Cool (0) Movement Core (150) Ox2 Location -7/Factory Parts ------- > --- POWER (2) -------- (None) > --- PROPULSION (4) --- (None) > --- UTILITY (5) ------ Improved Matter Compressor Transport Network Coupler Relay Coupler [NC] (8) > --- WEAPON (2) ------- Cooled Plasma Rifle > --- INVENTORY (5) ---- Experimental Sensor Array Advanced Trap Extractor (5/8 Shock) Cooled Phase Cannon Improved Grenade Launcher Improved Remote Datajack Peak State ------------ > --- POWER ------------ Reinforced Fission Core > --- PROPULSION ------- Armored Treads Armored Treads Improved Medium Treads Armored Wheel > --- UTILITY ---------- Advanced Cooling System High-capacity Storage Unit Experimental Sensor Array Advanced Targeting Computer Layered Medium Armor Plating > --- WEAPON ----------- Heavy Phase Cannon Hypervelocity Coil Gun > --- INVENTORY -------- Transport Network Coupler Remote Force Field Relay Coupler [NC] Relay Coupler [NC] Relay Coupler [NC] Advanced Trap Extractor Advanced Drone Bay Long-range Proton Cannon AWS/Gauss XL Autogun Array Improved Grenade Launcher Datajack Improved Remote Datajack Plasma Cutter [Rating: 64] Favorites ----------- Power Heavy Ion Engine Engine Heavy Ion Engine Power Core Reinforced Fission Core Propulsion Light Treads Treads Light Treads Wheel Armored Wheel Flight Unit Improved Flight Unit Utility High-capacity Storage Unit Device Remote Force Field Storage High-capacity Storage Unit Processor Advanced Targeting Computer Hackware Hacking Suite Protection Layered Medium Armor Plating Weapon AWS/Gauss Energy Gun Improved EM Shotgun Energy Cannon Heavy Phase Cannon Ballistic Gun AWS/Gauss Launcher Improved Grenade Launcher Special Weapon Plasma Cutter Impact Weapon Powered Hammer Special Melee Weapon Datajack Build | -11 -10 -10 -10 -9 -8 -8 -8 -8 -7 ------- Run | Yrd Mat Min Exi Min Mat Gar Mat Gar Fac Slots Evolved 6 | . . . . . 4 . . . 2 Power 1 | . . . . . . . . . 1 Propulsion 2 | . . . . . 2 . . . . Utility 3 | . . . . . 2 . . . 1 Weapon . | . . . . . . . . . . Parts Attached 184 | 7 16 1 5 2 33 26 32 41 21 Power 11 | 1 3 1 1 1 . . 1 1 2 Engine 9 | 1 3 1 1 1 . . 1 . 1 Core 2 | . . . . . . . . 1 1 Reactor . | . . . . . . . . . . Propulsion 36 | 2 4 . 1 . 12 5 10 1 1 Treads 30 | 1 3 . 1 . 10 5 8 1 1 Leg . | . . . . . . . . . . Wheel 5 | 1 1 . . . 2 . 1 . . Hover . | . . . . . . . . . . Flight 1 | . . . . . . . 1 . . Utility 56 | 2 3 . . 1 10 8 11 14 7 Device 21 | 1 1 . . . . 4 4 7 4 Storage 5 | 1 1 . . . 1 . 1 . 1 Processor 5 | . 1 . . . 3 . . . 1 Hackware 2 | . . . . . . . 1 . 1 Protection 23 | . . . . 1 6 4 5 7 . Artifact . | . . . . . . . . . . Weapon 81 | 2 6 . 3 . 11 13 10 25 11 Energy Gun 5 | . 3 . 1 . . . . . 1 Energy Cannon 20 | . . . . . . 2 5 9 4 Ballistic Gun 34 | 2 2 . 1 . 9 8 3 9 . Ballistic Cannon . | . . . . . . . . . . Launcher 11 | . 1 . . . 1 2 . 3 4 Special Weapon 6 | . . . . . . . . 4 2 Impact Weapon 3 | . . . . . 1 1 1 . . Slashing Weapon . | . . . . . . . . . . Piercing Weapon . | . . . . . . . . . . Special Melee Weapon 2 | . . . 1 . . . 1 . . Unidentified Prototypes 8 | . 1 . . . . . 2 . 5 Corrupted Parts 1 | . . . . . . . 1 . . System Corruption 7 | . . . . . . . 7 . . Parts Lost 17 | . 3 1 . . 1 4 1 1 6 Power 2 | . . 1 . . . . 1 . . Propulsion 8 | . 2 . . . . 2 . . 4 Utility 5 | . 1 . . . 1 2 . . 1 Weapon 2 | . . . . . . . . 1 1 Highest Loss Streak 5 | . 3 1 . . 1 2 1 1 5 To Critical Strikes . | . . . . . . . . . . Average Slot Usage (%) 92 | . 99 100 93 85 97 91 92 91 78 Engine 9 | . 14 14 14 14 9 9 8 8 1 Treads 24 | . 14 14 14 14 27 31 27 27 21 Wheel 9 | . 13 14 14 14 9 2 8 9 6 Device 5 | . 10 . . . . 1 6 5 11 Storage 9 | . 14 14 14 14 9 9 9 9 4 Processor 8 | . 2 14 14 . 11 9 9 9 10 Protection 8 | . . . . 13 13 16 8 8 4 Energy Gun 1 | . 3 28 9 . . . . . . Energy Cannon 3 | . . . . . . 1 5 9 4 Ballistic Gun 9 | . 23 . 5 14 16 10 5 2 4 Naked Turns . | . . . . . . . . . . Heaviest Build 103 | 13 49 51 55 63 74 80 85 87 103 Greatest Support 83 | 20 20 10 10 10 20 83 80 12 12 Greatest Overweight (x) 8 | . 4 5 5 6 7 7 7 7 8 Average Overweight (x) 4 | . 2 4 4 5 5 2 5 5 2 Largest Inventory Capacity 20 | 8 20 20 20 20 20 20 20 20 20 Average Capacity 19 | 6 17 20 20 20 20 20 20 20 13 Most Carried 20 | 7 20 20 20 20 20 20 20 20 20 Average Carried 18 | 3 13 19 19 19 19 19 19 19 9 Final Capacity 20 | 8 20 20 20 20 20 20 20 20 5 Final Carried 20 | 7 20 20 20 20 20 20 20 20 5 Class Distribution -------------------- 52% | Mutant 28% | Scavenger-Mutant 19% | Trapper-Mutant Dominant Class ---------------- Mutant | -10/Materials Mutant | -10/Mines Mutant | -10/Exiles Mutant | -9/Mines Scavenger-Mutant | -8/Materials Scavenger-Mutant | -8/Garrison Mutant | -8/Materials Trapper-Mutant | -8/Garrison Trapper-Mutant | -7/Factory Resources | -11 -10 -10 -10 -9 -8 -8 -8 -8 -7 ----------- Run | Yrd Mat Min Exi Min Mat Gar Mat Gar Fac Matter Collected 2901 | 280 279 118 50 20 666 399 367 502 220 Remotely 342 | 154 188 . . . . . . . . Salvage Created 4710 | 62 711 96 . 225 1066 883 584 865 218 Parts 295 | 5 55 4 . 6 74 51 36 49 15 Haulers Intercepted 7 | . 2 . . . 4 . 1 . . Recyclers Shooed . | . . . . . . . . . . Parts Field Recycled . | . . . . . . . . . . Retrieved Matter . | . . . . . . . . . . Parts Self-Destructed . | . . . . . . . . . . Prevented . | . . . . . . . . . . Kills | -11 -10 -10 -10 -9 -8 -8 -8 -8 -7 ------- Run | Yrd Mat Min Exi Min Mat Gar Mat Gar Fac Combat Hostiles Destroyed 98 | . 15 2 . 5 18 19 6 27 6 Guns 64 | . 12 . . 5 13 13 5 14 2 Cannons 4 | . . . . . . . . 4 . AOE 27 | . 3 1 . . 5 5 . 9 4 Classes Destroyed 16 | 2 5 . . 1 3 3 . . 2 Worker 3 | . . . . . 2 . . . 1 Builder 3 | . . . . . 2 . . . 1 Tunneler 1 | 1 . . . . . . . . . Hauler 7 | . 2 . . . 4 . 1 . . Recycler 2 | 1 . . . . . . 1 . . Operator 4 | . 2 . . . 1 . 1 . . Watcher 8 | . 2 . . . 2 . 4 . . Swarmer 22 | . 3 . . . 4 7 . 8 . Grunt 54 | . 12 2 . 3 8 6 4 17 2 Brawler 2 | . . . . 2 . . . . . Duelist 2 | . . . . . . 2 . . . Sentry 12 | . . . . . 6 2 2 2 . Specialist 1 | . . . . . . . . . 1 Hunter 2 | . . . . . . 1 . . 1 Programmer 2 | . . . . . . . . . 2 Behemoth 1 | . . . . . . 1 . . . Best Kill Streak 9 | 1 3 1 . 3 8 6 3 9 6 Combat Bots Only 9 | . 3 2 . 3 5 6 3 9 4 Max Kills in Single Turn 6 | 1 2 1 . 1 6 2 1 4 4 Gunslinging . | . . . . . . . . . . Exploded 4 | . 2 1 . . 3 2 . 4 2 Melee . | . . . . . . . . . . Uniques/NPCs Destroyed . | . . . . . . . . . . Combat | -11 -10 -10 -10 -9 -8 -8 -8 -8 -7 -------- Run | Yrd Mat Min Exi Min Mat Gar Mat Gar Fac Hostile Shots Fired 608 | . 73 6 . 5 87 87 20 99 231 Missed 192 | . 16 2 . 2 16 23 8 29 96 Damage Taken 5938 | . 697 57 . 33 922 1400 140 1036 1653 Core 1259 | . 199 16 . 11 70 219 . 44 700 Absorbed by Shields 204 | . . . . . . 4 45 84 71 Ignored by Resistances 240 | . . . . . 59 181 . . . Regen/Repaired (Parts) 71 | . . . . . . . 71 . . Core Remaining (%) 49 | 100 . . . 9 . . . 39 . Volleys Fired 254 | 5 69 6 . . 56 26 15 45 32 Largest 2 | 2 2 2 . . 2 2 2 1 1 Hottest 171 | 40 60 90 . . 48 81 171 90 90 Shots Fired 552 | 10 136 12 . 23 131 77 42 89 32 Gun 443 | 10 134 12 . 23 128 62 18 44 12 Cannon 77 | . . . . . . 9 24 34 10 Launcher 30 | . 2 . . . 3 6 . 11 8 Special 2 | . . . . . . . . . 2 Kinetic 418 | 10 121 . . 23 128 62 18 44 12 Thermal 60 | . 13 . . . . . 15 22 10 Explosive 30 | . 2 . . . 3 6 . 11 8 Electromagnetic 42 | . . 12 . . . 9 9 12 . Robot Hit Streak 38 | 4 8 8 . 31 36 28 18 38 8 Robot Miss Streak 4 | 1 2 4 . . 3 1 3 3 2 Penetration Max 2 | . . . . . 1 . . . 2 Secondary Targets 1 | . 1 . . . . . . . . Max Gunslinging Chain 1 | . 1 . . . . . . . . Autonomous 152 | . . . . 23 22 41 19 47 . Shots Hit Robots 396 | 6 90 8 4 23 92 68 32 57 16 Core Hits 215 | 4 46 3 . 5 45 31 13 41 27 Critical Kills 4 | . . . . . . . 1 1 2 Critical Parts Destroyed 11 | . . . . . . 2 . 3 6 Critical Strikes 15 | . . . . . . 2 1 4 8 Meltdown 1 | . . . . . . . 1 . . Destroy 12 | . . . . . . . . 4 8 Smash 2 | . . . . . . 2 . . . Melee Attacks 19 | . . . 4 . 1 9 5 . . Impact 11 | . . . . . 1 9 1 . . Slashing . | . . . . . . . . . . Piercing . | . . . . . . . . . . Sneak Attacks 8 | . . . 4 . . . 4 . . Combat Hostiles . | . . . . . . . . . . Follow-up Attacks . | . . . . . . . . . . Damage Inflicted 11076 | 48 848 161 . 748 2245 2254 1031 2888 853 Guns 6509 | 48 752 136 . 635 1830 1007 587 1393 121 Cannons 1134 | . . . . . . 193 390 525 26 Explosions 2836 | . 96 25 . 113 415 552 . 970 665 Melee 556 | . . . . . . 502 54 . . Ramming 41 | . . . . . . . . . 41 Kinetic 6292 | 48 671 . . 635 1830 1007 587 1393 121 Thermal 776 | . 81 25 . 113 . . 214 317 26 Explosive 2698 | . 96 . . . 415 552 . 970 665 Electromagnetic 713 | . . 136 . . . 193 176 208 . Impact 556 | . . . . . . 502 54 . . Slashing . | . . . . . . . . . . Piercing . | . . . . . . . . . . Highest Corruption 7 | . . . . . . . 7 1 1 Average Corruption 1 | . . . . . . . 3 1 1 Corruption Purged 7 | . . . . . . . 7 . . Corruption Blocked . | . . . . . . . . . . Effects 15 | . . . . . . . 1 7 7 Message Errors 5 | . . . . . . . 1 2 2 Matter Fused 3 | . . . . . . . . 2 1 Heat Flow Errors 2 | . . . . . . . . 1 1 Energy Discharges 2 | . . . . . . . . 1 1 Data Loss (minor) 3 | . . . . . . . . 1 2 Overload Shots 1 | . . . . . . . . . 1 Overflow Damage 287 | . . . . . 2 149 45 88 3 Projectiles 72 | . . . . . . . 31 41 . Explosions 52 | . . . . . 2 . . 47 3 Melee 163 | . . . . . . 149 14 . . Knockbacks 5 | . . . . . . 5 . . . Impact 4 | . . . . . . 4 . . . Kinetic . | . . . . . . . . . . Secondary 1 | . . . . . . 1 . . . Self-Inflicted Damage 567 | . . . . . . 247 . 108 212 Shots 17 | . . . . . . 5 . 4 8 Rammed 5 | . . . . . . . . . 5 Targets Rammed 5 | . . . . . . . . . 5 Kicked . | . . . . . . . . . . Crushed . | . . . . . . . . . . Highest Temperature 264 | . 120 147 . . 103 210 240 264 240 Average Temperature 54 | . 33 71 . . 19 36 75 91 42 Received Heat Transfer 1976 | . 375 33 . 18 432 168 78 544 328 Effects 3 | . . . . . . 1 . 2 . Interference 3 | . . . . . . 1 . 2 . Siege Activations . | . . . . . . . . . . Robots Corrupted 2 | . . 1 . . . 1 . . . Combat Hostiles 2 | . . 1 . . . 1 . . . Parts Fried 10 | . . 1 . . . 5 3 1 . Impact Corruptions 6 | . . . . . . 5 1 . . Robots Melted 1 | . . . . . . . 1 . . Combat Hostiles . | . . . . . . . . . . Parts Melted 5 | . 1 . . . 1 . 3 . . Heat Transferred 967 | . 175 50 . 150 . . 222 333 37 Parts Sabotaged . | . . . . . . . . . . Parts Stolen . | . . . . . . . . . . Parts Stripped . | . . . . . . . . . . Power Chain Reactions 1 | . . 1 . . . . . . . Alert | -11 -10 -10 -10 -9 -8 -8 -8 -8 -7 ------- Run | Yrd Mat Min Exi Min Mat Gar Mat Gar Fac Peak Influence 1076 | 10 223 112 . 229 585 1076 587 864 523 Initial 524 | . 6 60 . . 30 349 524 41 453 Average 306 | 3 115 91 . 82 292 792 192 453 416 Maximum Alert Level 3 | . 1 . . 1 2 3 2 3 2 Low Security (%) 50 | 100 93 100 . 89 25 . 69 18 . Level 1 19 | . 6 . . 10 50 13 17 21 34 Level 2 18 | . . . . . 23 19 13 38 65 Level 3 11 | . . . . . . 67 . 21 . Level 4 . | . . . . . . . . . . Level 5 . | . . . . . . . . . . High Security . | . . . . . . . . . . Max Security . | . . . . . . . . . . Squads Dispatched 22 | . 7 . . . 6 . 4 . 5 Investigation 14 | . 5 . . . 4 . 3 . 2 Extermination 1 | . . . . . . . . . 1 Reinforcement 6 | . 2 . . . 2 . 1 . 1 Assault . | . . . . . . . . . . Garrison 1 | . . . . . . . . . 1 Intercept . | . . . . . . . . . . Searches Triggered . | . . . . . . . . . . Construction Impeded 2 | . . . . . 1 . . . 1 Haulers Reinforced . | . . . . . . . . . . Active Scanning Responses . | . . . . . . . . . . Cargo Convoy Interrupts 1 | . . . . . . . . . 1 Stealth | -11 -10 -10 -10 -9 -8 -8 -8 -8 -7 --------- Run | Yrd Mat Min Exi Min Mat Gar Mat Gar Fac Distress Signals 11 | . 2 . . . 6 . . . 3 Communications Jammed . | . . . . . . . . . . Distress Signals . | . . . . . . . . . . Times Spotted 162 | . 31 2 . 6 34 22 10 29 28 Peak Tracking Total 10 | . 4 1 . 3 5 4 3 6 10 Tactical Retreats 8 | . 1 . . . . 1 . 1 5 Traps | -11 -10 -10 -10 -9 -8 -8 -8 -8 -7 ------- Run | Yrd Mat Min Exi Min Mat Gar Mat Gar Fac Traps Triggered 18 | . 3 . . . . 6 2 6 1 Indirectly . | . . . . . . . . . . Trap Hack Attempts 103 | . . . . . . . 66 37 . Triggered 2 | . . . . . . . 1 1 . Disarmed . | . . . . . . . . . . Reprogrammed 12 | . . . . . . . 9 3 . Reused 2 | . . . . . . . . . 2 Traps Extracted 9 | . . . . . . . 9 . . Installed 7 | . . . . . 3 . 1 . 3 Triggered 2 | . . . . . . . . . 2 Most Traps Carried 8 | . . . . 3 3 . 8 8 8 Machines | -11 -10 -10 -10 -9 -8 -8 -8 -8 -7 ---------- Run | Yrd Mat Min Exi Min Mat Gar Mat Gar Fac Machines Disabled 16 | . . . . 8 2 4 1 1 . Max in Single Turn 6 | . . . . 6 1 3 1 1 . Garrison Relay 4 | . . . . . . . . 4 . Phase Generator 1 | . . . . . . 1 . . . Machines Repaired . | . . . . . . . . . . Machines Dismantled 4 | . . . . . . . . 4 . Machines Sabotaged . | . . . . . . . . . . Overloaded Fab Kills . | . . . . . . . . . . Hacking | -11 -10 -10 -10 -9 -8 -8 -8 -8 -7 --------- Run | Yrd Mat Min Exi Min Mat Gar Mat Gar Fac Machines Accessed 44 | . 8 1 2 . 9 2 12 3 7 Terminals 29 | . 6 1 . . 5 2 7 3 5 Fabricators 1 | . . . . . . . . . 1 Repair Stations 2 | . . . . . . . 2 . . Recycling Units 6 | . 2 . . . 2 . 1 . 1 Scanalyzers 2 | . . . . . 1 . 1 . . Garrison Access 2 | . . . . . 1 . 1 . . Total Hacks 135 | . 24 4 5 . 25 6 44 7 20 Successful 69 | . 12 1 5 . 12 3 27 2 7 Failed 66 | . 12 3 . . 13 3 17 5 13 Catastrophic 9 | . 3 . . . 4 . . . 2 Database Lockouts . | . . . . . . . . . . Manual 69 | . 15 4 1 . 14 3 17 1 14 Terminals 86 | . 20 4 . . 13 6 24 7 12 Fabricators 3 | . . . . . . . . . 3 Repair Stations 5 | . . . . . . . 5 . . Recycling Units 15 | . 4 . . . 4 . 2 . 5 Scanalyzers 15 | . . . . . 5 . 10 . . Garrison Access 6 | . . . . . 3 . 3 . . Terminal Hacks 25 | . 8 1 5 . 2 1 5 2 1 Record 4 | . . . 4 . . . . . . Part Schematic 5 | . 2 1 . . 1 . 1 . . Robot Schematic 1 | . 1 . . . . . . . . Robot Analysis 3 | . 3 . . . . . . . . Prototype ID Bank 2 | . 1 . . . . . 1 . . Emergency Access Points 1 | . . . . . . . . 1 . Terminal Index 1 | . . . . . . . . . 1 Locate Traps 3 | . 1 . . . 1 . 1 . . Hauler Manifests 1 | . . . . . . . 1 . . Zone Layout 1 | . . . . . . . 1 . . Patrol Navigation 2 | . . . . . . 1 . 1 . Derelict Proto ID Bank 1 | . . . 1 . . . . . . Fabricator Hacks 1 | . . . . . . . . . 1 Load Schematic 1 | . . . . . . . . . 1 Repair Station Hacks 4 | . . . . . . . 4 . . Scan Component 2 | . . . . . . . 2 . . Repair 2 | . . . . . . . 2 . . Recycling Unit Hacks 6 | . 2 . . . 2 . 1 . 1 Report Inventory 6 | . 2 . . . 2 . 1 . 1 Scanalyzer 11 | . . . . . 2 . 9 . . Insert Component 5 | . . . . . 1 . 4 . . Analyze 6 | . . . . . 1 . 5 . . Garrison Access Hacks 2 | . . . . . 1 . 1 . . Unlock Access 2 | . . . . . 1 . 1 . . Unauthorized Hacks 20 | . 2 . . . 5 2 7 . 4 Terminals 10 | . . . . . 2 2 5 . 1 Track 3 | . . . . . . 1 2 . . Assimilate 1 | . . . . . 1 . . . . Botnet 6 | . . . . . 1 1 3 . 1 Fabricators . | . . . . . . . . . . Repair Stations . | . . . . . . . . . . Recycling Units 8 | . 2 . . . 2 . 1 . 3 Reject 1 | . . . . . . . . . 1 Recyclers 1 | . . . . . . . . . 1 Mask 2 | . . . . . . . 1 . 1 Tunnel 4 | . 2 . . . 2 . . . . Scanalyzers . | . . . . . . . . . . Garrison Access 2 | . . . . . 1 . 1 . . Reprogram 2 | . . . . . 1 . 1 . . Data Cores Recovered . | . . . . . . . . . . Used . | . . . . . . . . . . Hacking Detections 36 | . 6 1 . . 6 2 11 3 7 Full Trace Events 8 | . 2 . . . 1 . 2 1 2 Feedback Events 2 | . . . . . . . . 1 1 Corruption 2 | . . . . . . . . 1 1 Feedback Blocked . | . . . . . . . . . . Robot Schematics Acquired 1 | . 1 . . . . . . . . Robots Built . | . . . . . . . . . . Authchips . | . . . . . . . . . . Time . | . . . . . . . . . . Total Robot Build Rating . | . . . . . . . . . . Part Schematics Acquired 9 | . 2 1 . . 1 . 5 . . Parts Built . | . . . . . . . . . . Authchips . | . . . . . . . . . . Time . | . . . . . . . . . . Total Part Build Rating . | . . . . . . . . . . Parts Repaired 2 | . . . . . . . 2 . . Time 197 | . . . . . . . 197 . . Parts Recycled . | . . . . . . . . . . Recycled Matter . | . . . . . . . . . . Retrieved Matter . | . . . . . . . . . . Retrieved Components . | . . . . . . . . . . Parts Scanalyzed 4 | . . . . . 1 . 3 . . Part Schematics Acquired 4 | . . . . . . . 4 . . Parts Damaged 1 | . . . . . . . 1 . . Bothacking | -11 -10 -10 -10 -9 -8 -8 -8 -8 -7 ------------ Run | Yrd Mat Min Exi Min Mat Gar Mat Gar Fac Used RIF Installer 2 | . . . . . . 1 . 1 . Threat Obfuscator 1 | . . . . . . . . 1 . Robots Hacked 8 | . . . 4 . . . 2 . 2 Non-combat 7 | . . . 3 . . . 2 . 2 Combat 1 | . . . 1 . . . . . . Robot Hacks Applied 10 | . . . 4 . . . 4 . 2 parse_system 4 | . . . 4 . . . . . . no_distress 2 | . . . . . . . 2 . . ignore_parts 2 | . . . . . . . 2 . . map_route 1 | . . . . . . . . . 1 formatsys_high 1 | . . . . . . . . . 1 Relay Couplers Released 17 | . . . . . . . . 17 . Machine Destruction 17 | . . . . . . . . 17 . Attached 1 | . . . . . . . . . 1 Fabnet Peak Effective % . | . . . . . . . . . . Robots Rewired . | . . . . . . . . . . Allies Hacked . | . . . . . . . . . . Hacks Repelled . | . . . . . . . . . . Allies | -11 -10 -10 -10 -9 -8 -8 -8 -8 -7 -------- Run | Yrd Mat Min Exi Min Mat Gar Mat Gar Fac Total Allies 8 | . . . . 3 4 . . . 1 Largest Group 3 | . . . . 3 3 . . . 1 Highest-Rated Group 48 | . . . . 40 48 . . . 10 Highest-Rated Ally 26 | . . . . 16 26 . . . 10 Total Orders . | . . . . . . . . . . Ally Attacks 64 | . . . . 20 44 . . . . Total Damage 706 | . . . . 197 509 . . . . Kills 13 | . . . . 3 10 . . . . Allies Corrupted . | . . . . . . . . . . Allies Melted 1 | . . . . . 1 . . . . Intel | -11 -10 -10 -10 -9 -8 -8 -8 -8 -7 ------- Run | Yrd Mat Min Exi Min Mat Gar Mat Gar Fac Robot Analysis Total 3 | . 3 . . . . . . . . Derelict Logs Recovered 5 | . . 2 . 3 . . . . . Drone Launches . | . . . . . . . . . . Drone Recoveries . | . . . . . . . . . . Exploration | -11 -10 -10 -10 -9 -8 -8 -8 -8 -7 ------------- Run | Yrd Mat Min Exi Min Mat Gar Mat Gar Fac Turns Passed 14591 | 89 1543 301 507 907 1390 1754 5344 1912 844 Spaces Moved 5902 | 57 844 187 330 472 586 803 1246 718 659 Core 465 | 2 . . . . . . . . 463 Treads 601 | 2 7 . . . 6 570 16 . . Legs . | . . . . . . . . . . Wheels 4836 | 53 837 187 330 472 580 233 1230 718 196 Hover . | . . . . . . . . . . Flight . | . . . . . . . . . . Fastest Speed 50 | 50 100 140 140 155 155 160 160 150 50 Average Speed 157 | 100 127 148 147 168 167 180 179 178 96 Slowest Speed 320 | 160 320 155 155 170 320 240 195 195 210 Overloaded Moves . | . . . . . . . . . . Propulsion Burnouts . | . . . . . . . . . . Robots Hopped . | . . . . . . . . . . Cave-ins Triggered . | . . . . . . . . . . Time Travels 1 | . . . . . . . . 1 . Exploration Rate (%) 59 | 4 99 40 70 91 51 80 61 83 16 Regions Visited 9 Branch Regions 3 Pre-discovered Areas 6 | . 2 . 1 1 2 . . . . Known Exits Taken 2 | . . . . . 1 . 1 . . Unknown Exits Taken 5 | 1 1 1 1 1 . . . . . Scrap Searched 3 | . . 1 . 2 . . . . . Spaces Dug 67 | . . . . . 1 . 5 17 44 Terrain Destroyed 333 | . 10 5 . 33 16 93 19 24 133 Melee 1 | . . . . . 1 . . . . Projectile 56 | . . . . 12 11 5 19 5 4 AOE 275 | . 10 5 . 21 4 88 . 19 128 Terrain Rammed . | . . . . . . . . . . Walls Destroyed . | . . . . . . . . . . Machines Disabled . | . . . . . . . . . . Actions | -11 -10 -10 -10 -9 -8 -8 -8 -8 -7 --------- Run | Yrd Mat Min Exi Min Mat Gar Mat Gar Fac Total 10859 | 77 1203 200 352 587 906 1057 4344 1293 840 Wait 3989 | 2 234 4 . 102 166 128 2929 335 89 Move 5892 | 56 843 186 329 471 585 802 1245 716 659 Hop . | . . . . . . . . . . Pick Up 136 | 7 26 2 4 5 23 12 20 31 6 Fast Attach 48 | 7 5 . 1 1 6 6 8 5 9 Attach 69 | . 4 1 1 . 5 9 14 26 9 Detach 15 | . . . . . . 3 2 2 8 Swap 67 | . 7 . 3 1 22 11 10 10 3 Drop 170 | . 15 1 10 7 39 18 29 34 17 Fire 254 | 5 69 6 . . 56 26 15 45 32 Melee 19 | . . . 4 . 1 9 5 . . Ram 5 | . . . . . . . . . 5 Kick . | . . . . . . . . . . Crush . | . . . . . . . . . . Escape Stasis 72 | . . . . . . 32 . 40 . Rewire 1 | . . . . . . 1 . . . Trap 110 | . . . . . 3 . 67 37 3 Miscellaneous 12 | . . . . . . . . 12 . Route ------- -11/Scrapyard -10/Materials (discovered 4 exits: [*Mat x3] / *Min) -10/Mines (discovered 2 exits: [*Mat] / *Exi) -10/Exiles (discovered 2 exits: [*Min x2]) -9/Mines (discovered 2 exits: *Mat x2) -8/Materials (discovered 2 exits: *Fac / Gar) -8/Garrison (discovered 3 exits: *Mat x3) -8/Materials (discovered 3 exits: *Fac x2 / Gar) -8/Garrison (discovered 2 exits: *Fac x2) -7/Factory History --------- Turn | Location | Event 30 | -11/Scrapyard | Discovered new exit (range 16) 90 | -11/Scrapyard | Entered Materials 307 | -10/Materials | Discovered new exit (range 4) 310 | -10/Materials | Build established: Mutant 634 | -10/Materials | Discovered new exit (range 7) 765 | -10/Materials | Core integrity fell below 50% 1034 | -10/Materials | Discovered new exit (range 16) 1342 | -10/Materials | Lost 3 parts (2n1u) 1399 | -10/Materials | Discovered new exit (range 15) 1633 | -10/Materials | Entered Mines 1636 | -10/Mines | Discovered new exit (range 13) 1649 | -10/Mines | Learned Materials interactive machine intel 1770 | -10/Mines | Core integrity fell below 20% 1832 | -10/Mines | Learned Materials terminal intel 1899 | -10/Mines | Found a damaged Exp. Sensor Array with a note attached 1902 | -10/Mines | Found Prototype Device 1928 | -10/Mines | Deemed a non-threat by the Exiles lab entrance 1928 | -10/Mines | Discovered new exit (range 5) 1934 | -10/Mines | Entered Exiles 1958 | -10/Exiles | Discovered new exit (range 15) 1976 | -10/Exiles | Met 8R-AWN 1999 | -10/Exiles | Met EX-HEX 2073 | -10/Exiles | Met EX-DEC 2113 | -10/Exiles | Learned location of Zion (-7) 2146 | -10/Exiles | Met EX-BIN 2163 | -10/Exiles | Aligned with FarCom system 2164 | -10/Exiles | Given EX-Vault access code 2205 | -10/Exiles | Opened EX-Vault 2223 | -10/Exiles | Found XL Autogun Array 2233 | -10/Exiles | Found AWS/Gauss 2238 | -10/Exiles | Found Chronowheel 2281 | -10/Exiles | Warned to stay clear of 0b10 Research branches 2422 | -10/Exiles | Discovered new exit (range 14) 2441 | -10/Exiles | Stole three prototypes: AWS/Gauss, Chronowheel, XL Autogun Array 2441 | -10/Exiles | Entered Mines 2462 | -9/Mines | Learned Materials emergency access door positions 2539 | -9/Mines | Assisted by bots powering up and referring to "LRC-V3" 2733 | -9/Mines | Learned Materials terminal intel 2736 | -9/Mines | Discovered new exit (range 3) 3097 | -9/Mines | Discovered new exit (range 3) 3211 | -9/Mines | Found a hidden stash of uninstalled traps 3348 | -9/Mines | Entered Materials 3348 | -8/Materials | Evolved 4 slots: Propulsion x2, Utility x2 3350 | -8/Materials | Loaded intel: 19 interactive machine locations 3351 | -8/Materials | Loaded intel: 12 terminal locations 3647 | -8/Materials | Build established: Scavenger-Mutant 3742 | -8/Materials | Identified exit to Garrison 4057 | -8/Materials | Identified Exp. Sensor Array 4506 | -8/Materials | Discovered new exit (range 11) 4738 | -8/Materials | Entered Garrison 4864 | -8/Garrison | Triggered checkpoint 5100 | -8/Garrison | Triggered checkpoint 5110 | -8/Garrison | Triggered checkpoint 5236 | -8/Garrison | Discovered new exit (range 15) 5304 | -8/Garrison | Triggered checkpoint 5434 | -8/Garrison | Phase Generator disabled 5530 | -8/Garrison | Installed Relay Interface Framework 5609 | -8/Garrison | Build established: Mutant 5754 | -8/Garrison | Spotted B-75 Beast 5765 | -8/Garrison | Discovered new exit (range 8) 5827 | -8/Garrison | Core integrity fell below 50% 5830 | -8/Garrison | Destroyed B-75 Beast 5976 | -8/Garrison | Build established: Scavenger-Mutant 6185 | -8/Garrison | Discovered new exit (range 14) 6264 | -8/Garrison | Triggered checkpoint 6492 | -8/Garrison | Entered Materials 6493 | -8/Materials | Loaded intel: 12 terminal locations 6640 | -8/Materials | Repaired Corrupted Rnf. Deuterium Engine? 7178 | -8/Materials | Discovered new exit (range 3) 7972 | -8/Materials | Discovered new exit (range 14) 8008 | -8/Materials | Identified exit to Garrison 8208 | -8/Materials | Build established: Mutant 8437 | -8/Materials | Repaired Broken Exp. Sensor Array? 11836 | -8/Materials | Entered Garrison 11966 | -8/Garrison | Triggered checkpoint 11993 | -8/Garrison | Build established: Trapper-Mutant 12036 | -8/Garrison | Garrison Relay disabled 12051 | -8/Garrison | Activated Chronowheel 12051 | -8/Garrison | Spacetime reconverged on an earlier point 12189 | -8/Garrison | Triggered checkpoint 12256 | -8/Garrison | Destroyed 9 combat bots 12598 | -8/Garrison | Triggered checkpoint 12642 | -8/Garrison | Garrison Relay disabled 12693 | -8/Garrison | Expanded RIF knowledge: Threat Obfuscation 12974 | -8/Garrison | Triggered checkpoint 12999 | -8/Garrison | Discovered new exit (range 13) 13213 | -8/Garrison | Garrison Relay disabled 13549 | -8/Garrison | Triggered checkpoint 13667 | -8/Garrison | Garrison Relay disabled 13723 | -8/Garrison | Discovered new exit (range 14) 13748 | -8/Garrison | Entered Factory 13748 | -7/Factory | Evolved 2 slots: Power x1, Utility x1 13750 | -7/Factory | FarCom data flow suspended 14530 | -7/Factory | Cargo convoy interrupted 14580 | -7/Factory | Core integrity fell below 50% 14581 | -7/Factory | Found Prototype Launcher 14581 | -7/Factory | Identified Scatter Rocket Array 14590 | -7/Factory | Core integrity fell below 20% 14592 | -7/Factory | Destroyed by X-67 Chaingunner with Minigun Last Messages --------------- 14579_ K-01 Serf collects debris. 14581_ Acquired Prototype Launcher. 14581_ Identified Scatter Rocket Array. 14582_ ALERT: Rogue bot located, Programmers report to Factory Zone 9O. 14582_ K-01 Serf collects debris. 14583_ Destroyed Wheel. 14583_ K-01 Serf destroyed. 14583_ Destroyed Gravmag System. 14583_ U-05 Engineer destroyed. 14583_ P-60 Hacker destroyed. 14584_ Y-54 Guardian emerges from the garrison. 14586_ H-55 Commando destroyed. 14586_ X-67 Chaingunner destroyed. 14587_ ALERT: Construction progress impeded, dispatching reinforcements to local area. 14587_ Scatter Rocket Array destroyed. 14588_ Adv. Targeting Computer destroyed. 14591_ Acquired Prototype Energy Gun. 14591_ Identified Cld. Plasma Rifle. Map ----- +----------------------------------------------------+ | ????????????????????????????# ] ## #????# #??#?? | | ????????????????????????????# ## #????# #??# | | ????????????????????????????# ## #??### #### | | ????????????????????????????# ## ##?# ## | | ?????????????????????????#######+## ### T | | ?????????????????? "" | | ?????????????????????????########## ### | | ??????????????????????????????????## ##?# #### | | ???????????????????###########?????# #?#########?? | | ???????????????????# """"" #???### ### ##? | | ???????????????????# """"" ???# # ## | | ???????????????????# """ #### T" " # | | ???????????????????# "" " | | ???????????????????# Y### # | | ???????????????????# u # # # | | ???????????????????# ####### ## ### | | ???????????????????# [ i #?????#### ####?? | | ????????????????##### #?##########????? | | ????????? x #??# ?????? | | ????????????????##### [%= ???# ?????? | | ?????????????????????#] ! ##### ?????? | | ?????????????????????#"" # # ?????? | | ?????????????????????#""g ] # # ?????? | | ?????????????????????#GYg [## # ?????? | | ?????????????????????#""g []## + ?????? | | ?????????????????????#""[@ ## # ?????? | | ?????????????????????# ! = ## # ?????? | | ?????????????????????######### # ?????? | | ???????????????????????? # ?????? | | ???????????????????????? # ?????? | | ???????????????????????? ##########????? | | ???????????????????????? #?????????????? | | ???????????????????????? #?????????????? | | ???????????????????????? r########?????????????? | | ????????????????????????????#????????????????????? | | ?????????????????????????????????????????????????? | | ?????????????????????????????????????????????????? | | ?????????????????????????????????????????????????? | | ?????????????????????????????????????????????????? | | ?????????????????????????????????????????????????? | | ?????????????????????????????????????????????????? | | ?????????????????????????????????????????????????? | | ?????????????????????????????????????????????????? | | ?????????????????????????????????????????????????? | | ?????????????????????????????????????????????????? | | ?????????????????????????????????????????????????? | | ?????????????????????????????????????????????????? | | ?????????????????????????????????????????????????? | | ?????????????????????????????????????????????????? | | ?????????????????????????????????????????????????? | +----------------------------------------------------+ Best States ------------- Heat Dissipation 62 Energy Generation 28 Energy Capacity 485 Matter Stores 322 Matter Capacity 600 Sight Range 16 Robot Scan Range 20 Terrain Scan Density 10 Armor Coverage 600 Resistance: KI 20 Resistance: TH 10 Evasion (%) 50 Targeting Accuracy 8 Recoil Reduction 4 Offensive Hacking 10 Relay Coupler Types 1 Relay Coupler Value 31 Trap Extractor Capacity 8 Item Schematics ----------------- Cargo Storage Unit | -10/Materials | Hacked Lrg. Storage Unit | -10/Materials | Hacked Wheel | -10/Mines | Hacked Hacking Suite | -8/Materials | Hacked Lrn. Tractor Beam | -8/Materials | Hacked Lrn. Proton Cannon | -8/Materials | Scanalyzed Exp. Sensor Array | -8/Materials | Scanalyzed Adv. Trap Extractor | -8/Materials | Scanalyzed Adv. System Restoration Module | -8/Materials | Scanalyzed Robot Schematics ------------------ O-16 Technician | -10/Materials | Hacked Fabricated ------------ Nothing Alien Tech Used ----------------- None Achievements -------------- None Challenges ------------ None Game ------ Seed LightSpreadFrame Manual? 0 Play Time 01:59:44 Cumulative 702.9 hours Start 2024.04.17 @ 13:17:05 End 2024.04.17 @ 15:39:33 Sessions 1 Manual Loads 0 Difficulty Rogue Special Mode None Game No. 290 Rogue 262 Adventurer 3 Explorer 25 Win Type - Total 16 Types 10/3/1/1/0/1/0/0/0 Lore% 91 Gallery% 96 Achievement% 85 Wizard Run 0 Options --------- Layout 2 ASCII 0 Keyboard 0 Movement Numpad Keybinds 0 Fullscreen 2 Font 24/Smallcaps Map View 50x44 Zoom Use 0% Tactical HUD 1 Map Filters NONE Filters NONE Steam 1 RUN: 6d1e552f-8219-4a22-b3d7-983ab65de866